Cogmind - Beta 16.1 @@@ ROGUE MODE // 2026.03.25 @ 12:25:18 Player: leek.801 Result: Destroyed by Y-45 Defender with Beam Rifle Performance ------------- Evolutions (1) 500 Regions Visited (2) 400 Robots Destroyed (51) 255 Value Destroyed (1195) 1195 Prototype IDs (0) 0 Alien Tech Used (0) 0 Bonus (0) 0 TOTAL SCORE: 2350 Bonus ------- None Cogmind --------- Core Integrity 0/400 Matter 293/300 Energy 250/250 System Corruption 0% Temperature Cool (18) Movement Treading (166) Location -9/Materials Parts ------- > --- POWER (1) -------- Ion Engine > --- PROPULSION (3) --- Light Treads Armored Treads Armored Treads > --- UTILITY (3) ------ Large Storage Unit Signal Interpreter Power Shielding > --- WEAPON (2) ------- Small Laser Light Cannon > --- INVENTORY (15) --- Ion Engine Compact Wheel Compact Wheel Compact Wheel Compact Wheel Medium Storage Unit Beam Rifle Heavy Assault Rifle Heavy Assault Rifle Light Cannon Grenade Launcher Flail Blade Saw Peak State ------------ > --- POWER ------------ Light Ion Engine > --- PROPULSION ------- Armored Treads Armored Treads Advanced Treads > --- UTILITY ---------- Small Storage Unit Signal Interpreter Power Shielding > --- WEAPON ----------- Beam Rifle Heavy Assault Rifle > --- INVENTORY -------- Ion Engine Light Treads Light Treads Advanced Treads Large Storage Unit Small Laser Light Assault Rifle Grenade Launcher [Rating: 18] Favorites ----------- Power Ion Engine Engine Ion Engine Propulsion Armored Treads Treads Armored Treads Wheel Compact Wheel Utility Signal Interpreter Storage Small Storage Unit Processor Signal Interpreter Protection Power Shielding Weapon Small Laser Energy Gun Small Laser Ballistic Gun Heavy Assault Rifle Ballistic Cannon Light Cannon Launcher Grenade Launcher Build | -11 -10 -9 ------- Run | Yrd Mat Mat Slots Evolved 2 | . . 2 Power . | . . . Propulsion 1 | . . 1 Utility 1 | . . 1 Weapon . | . . . Parts Attached 41 | 6 8 27 Power 5 | 1 1 3 Engine 5 | 1 1 3 Core . | . . . Reactor . | . . . Propulsion 18 | 2 3 13 Treads 11 | . 2 9 Leg . | . . . Wheel 7 | 2 1 4 Hover . | . . . Flight . | . . . Utility 4 | 1 2 1 Device . | . . . Storage 2 | 1 . 1 Processor 1 | . 1 . Hackware . | . . . Protection 1 | . 1 . Artifact . | . . . Weapon 14 | 2 2 10 Energy Gun 7 | 2 1 4 Energy Cannon . | . . . Ballistic Gun 4 | . . 4 Ballistic Cannon 2 | . 1 1 Launcher 1 | . . 1 Special Weapon . | . . . Impact Weapon . | . . . Slashing Weapon . | . . . Piercing Weapon . | . . . Special Melee Weapon . | . . . Unidentified Prototypes . | . . . Parts Lost 8 | . . 8 Power 1 | . . 1 Propulsion 3 | . . 3 Utility . | . . . Weapon 4 | . . 4 Highest Loss Streak 4 | . . 4 To Critical Strikes . | . . . Average Backups 9 | 1 6 10 Power . | . 1 . Propulsion 3 | . 2 4 Utility . | . 1 1 Weapon 4 | . 2 4 Tool/Special . | . . . Unused Backups 9 | . . 9 Power 1 | . . 1 Propulsion 3 | . . 3 Utility 1 | . . 1 Weapon 4 | . . 4 Tool/Special . | . . . Average Slot Usage (%) 94 | . 94 95 Engine 11 | . 14 10 Treads 14 | . 2 19 Wheel 14 | . 25 10 Storage 11 | . 14 11 Processor 9 | . 4 11 Protection 9 | . 4 10 Energy Gun 11 | . 21 8 Ballistic Gun 5 | . . 6 Ballistic Cannon 5 | . 6 5 Peak Build Rating 18 | 6 7 18 Average Rating 11 | 4 6 13 On Entrance 4 | . 6 7 Avg Prop Armor Cover (%) 23 | . . 23 Naked Turns . | . . . Heaviest Build 32 | 13 15 32 Greatest Support 66 | 20 40 66 Greatest Overweight (x) 9 | . . 9 Average Overweight (x) . | . . . Largest Inventory Capacity 15 | 8 8 15 Average Capacity 10 | 7 8 12 Most Carried 15 | 4 8 15 Average Carried 9 | 1 6 10 Final Capacity 15 | 8 8 15 Final Carried 13 | 4 8 13 Class Distribution -------------------- 100% | Mutant Dominant Class ---------------- Mutant | -10/Materials Mutant | -9/Materials Resources | -11 -10 -9 ----------- Run | Yrd Mat Mat Matter Collected 1241 | 230 152 859 Remotely . | . . . Salvage Created 1327 | . 208 1119 Parts 93 | . 9 84 Haulers Intercepted . | . . . Recyclers Shooed 2 | . . 2 Parts Field Recycled . | . . . Retrieved Matter . | . . . Parts Self-Destructed . | . . . Prevented . | . . . Parts Restored . | . . . Kills | -11 -10 -9 ------- Run | Yrd Mat Mat Combat Hostiles Destroyed 36 | . 4 32 Guns 17 | . 3 14 Cannons 10 | . 1 9 AOE 9 | . . 9 Classes Destroyed 11 | . 3 8 Worker 5 | . 1 4 Builder 1 | . . 1 Tunneler 1 | . 1 . Recycler 2 | . . 2 Mechanic 1 | . . 1 Operator 3 | . . 3 Watcher 2 | . . 2 Swarmer 11 | . . 11 Grunt 20 | . 4 16 Duelist 1 | . . 1 Sentry 4 | . . 4 Best Kill Streak 6 | . 3 6 Combat Bots Only 5 | . 1 5 Max Kills in Single Turn 3 | . 1 3 Gunslinging . | . . . Exploded 3 | . . 3 Melee . | . . . Uniques/NPCs Destroyed . | . . . Combat | -11 -10 -9 -------- Run | Yrd Mat Mat Hostile Shots Fired 325 | . 16 309 Missed 99 | . 2 97 Hits 226 | . 14 212 Melee 6 | . . 6 Projectile 220 | . 14 206 Critical Strikes 6 | . . 6 Damage Taken 2697 | . 168 2529 Core 450 | . 37 413 Absorbed by Shields . | . . . Redirected to Shielding 46 | . 7 39 Regen/Repaired (Parts) 81 | . . 81 Core Remaining (%) 92 | 100 85 . Volleys Fired 142 | . 16 126 Largest 2 | . 2 2 Hottest 90 | . 90 90 Shots Fired 251 | . 32 219 Gun 179 | . 24 155 Cannon 61 | . 8 53 Launcher 11 | . . 11 Special . | . . . Kinetic 129 | . 8 121 Thermal 100 | . 17 83 Explosive 11 | . . 11 Electromagnetic 11 | . 7 4 Robot Hit Streak 15 | . 7 15 Robot Miss Streak 6 | . 2 6 Penetration Max . | . . . Secondary Targets 1 | . . 1 Max Gunslinging Chain 1 | . . 1 Shots Hit Robots 159 | . 19 140 Core Hits 77 | . 11 66 Critical Kills . | . . . Critical Parts Destroyed 2 | . . 2 Critical Strikes 6 | . 1 5 Burn 1 | . . 1 Destroy 2 | . . 2 Blast 3 | . 1 2 Melee Attacks . | . . . Impact . | . . . Slashing . | . . . Piercing . | . . . Sneak Attacks . | . . . Combat Hostiles . | . . . Follow-up Attacks . | . . . Damage Inflicted 2909 | . 252 2657 Guns 1464 | . 165 1299 Cannons 699 | . 87 612 Explosions 732 | . . 732 Melee . | . . . Ramming 14 | . . 14 Kinetic 1343 | . 87 1256 Thermal 742 | . 113 629 Explosive 732 | . . 732 Electromagnetic 78 | . 52 26 Impact . | . . . Slashing . | . . . Piercing . | . . . Highest Corruption . | . . . Average Corruption . | . . . Corruption Purged . | . . . Corruption Blocked . | . . . Overload Shots . | . . . Overflow Damage . | . . . Projectiles . | . . . Explosions . | . . . Melee . | . . . Knockbacks 10 | . 1 9 Impact . | . . . Kinetic 10 | . 1 9 Secondary . | . . . Self-Inflicted Damage 8 | . . 8 Shots 1 | . . 1 Rammed 3 | . . 3 Targets Rammed 4 | . . 4 Kicked . | . . . Crushed 1 | . . 1 Highest Temperature 126 | . 122 126 Average Temperature 32 | . 41 29 Received Heat Transfer 936 | . 96 840 Siege Activations . | . . . Martial Activations . | . . . Shielding Activations . | . . . Robots Disrupted . | . . . Combat Hostiles . | . . . Robots Corrupted . | . . . Combat Hostiles . | . . . Parts Fried . | . . . Impact Corruptions . | . . . Robots Melted . | . . . Combat Hostiles . | . . . Parts Melted . | . . . Heat Transferred 1794 | . 250 1544 Parts Sabotaged . | . . . Parts Stolen . | . . . Parts Stripped . | . . . Power Chain Reactions . | . . . Alert | -11 -10 -9 ------- Run | Yrd Mat Mat Maximum Alert Level 1 | . . 1 Low Security (%) 44 | 100 100 25 Level 1 55 | . . 74 Level 2 . | . . . Level 3 . | . . . Level 4 . | . . . Level 5 . | . . . High Security . | . . . Max Security . | . . . Peak Influence 360 | . 45 360 Initial 9 | . . 9 Average 168 | . 9 225 Influence Increases 1147 | . 160 987 Destroy 0b10 Robot/C 720 | . 80 640 Destroy 0b10 Robot/NC 75 | . 10 65 Destroy Leader 164 | . 30 134 Successful Hack 12 | . 10 2 Disable Machine 45 | . . 45 Destroy Structure 41 | . . 41 Partial Spotted 15 | . . 15 Lose Combat Pursuer 75 | . 30 45 Influence Decreases 815 | . 136 679 Entered New Map 15 | . . 15 Time Decay 720 | . 136 584 Lost Part 80 | . . 80 Squads Dispatched 7 | . 2 5 Investigation 4 | . 1 3 Extermination . | . . . Reinforcement 3 | . 1 2 Assault . | . . . Garrison . | . . . Intercept . | . . . Searches Triggered . | . . . Construction Impeded . | . . . Haulers Reinforced . | . . . Active Scanning Responses . | . . . Cargo Convoy Interrupts . | . . . Stealth | -11 -10 -9 --------- Run | Yrd Mat Mat Distress Signals 2 | . . 2 Communications Jammed . | . . . Distress Signals . | . . . Times Spotted 60 | . 8 52 Peak Tracking Total 8 | . 2 8 Tactical Retreats 5 | . 2 3 Traps | -11 -10 -9 ------- Run | Yrd Mat Mat Traps Triggered 3 | . 1 2 Indirectly . | . . . Trap Hack Attempts . | . . . Triggered . | . . . Disarmed . | . . . Reprogrammed . | . . . Reused . | . . . Traps Extracted . | . . . Installed . | . . . Triggered . | . . . Machines | -11 -10 -9 ---------- Run | Yrd Mat Mat Machines Disabled 3 | . . 3 Max in Single Turn 1 | . . 1 Machines Repaired . | . . . Machines Dismantled . | . . . Machines Sabotaged . | . . . Overloaded Fab Kills . | . . . Hacking | -11 -10 -9 --------- Run | Yrd Mat Mat Machines Accessed 8 | . 3 5 Terminals 5 | . 2 3 Fabricators . | . . . Repair Stations 2 | . . 2 Recycling Units 1 | . 1 . Scanalyzers . | . . . Garrison Access . | . . . Total Hacks 16 | . 6 10 Successful 11 | . 4 7 Failed 5 | . 2 3 Catastrophic . | . . . Database Lockouts . | . . . Manual 9 | . 5 4 Terminals 10 | . 5 5 Fabricators . | . . . Repair Stations 5 | . . 5 Recycling Units 1 | . 1 . Scanalyzers . | . . . Garrison Access . | . . . Terminal Hacks . | . . . Fabricator Hacks . | . . . Repair Station Hacks 5 | . . 5 Scan Component 3 | . . 3 Repair 2 | . . 2 Recycling Unit Hacks 1 | . 1 . Report Inventory 1 | . 1 . Scanalyzer . | . . . Garrison Access Hacks . | . . . Unauthorized Hacks 5 | . 3 2 Terminals 5 | . 3 2 Assimilate 1 | . 1 . Botnet 3 | . 2 1 Skim 1 | . . 1 Fabricators . | . . . Repair Stations . | . . . Recycling Units . | . . . Scanalyzers . | . . . Garrison Access . | . . . Data Cores Recovered 1 | . . 1 Used . | . . . Hacking Detections 5 | . 2 3 Full Trace Events 1 | . . 1 Feedback Events . | . . . Feedback Blocked . | . . . Robot Schematics Acquired . | . . . Robots Built . | . . . Authchips . | . . . Time . | . . . Total Robot Build Rating . | . . . Part Schematics Acquired . | . . . Parts Built . | . . . Authchips . | . . . Time . | . . . Total Part Build Rating . | . . . Part Studies Acquired . | . . . Parts Repaired 2 | . . 2 Time 52 | . . 52 Parts Recycled . | . . . Recycled Matter . | . . . Retrieved Matter . | . . . Retrieved Components . | . . . Parts Scanalyzed . | . . . Part Schematics Acquired . | . . . Parts Damaged . | . . . Bothacking | -11 -10 -9 ------------ Run | Yrd Mat Mat Used RIF Installer . | . . . Robots Hacked . | . . . Non-combat . | . . . Combat . | . . . Robot Hacks Applied . | . . . Relay Couplers Released . | . . . Fabnet Peak Effective % . | . . . Robots Rewired . | . . . Allies Hacked . | . . . Hacks Repelled . | . . . Allies | -11 -10 -9 -------- Run | Yrd Mat Mat Total Allies . | . . . Largest Group . | . . . Highest-Rated Group . | . . . Highest-Rated Ally . | . . . Total Orders . | . . . Ally Attacks . | . . . Total Damage . | . . . Kills . | . . . Allies Corrupted . | . . . Allies Melted . | . . . Intel | -11 -10 -9 ------- Run | Yrd Mat Mat Active Infowar (turns) . | . . . Robot Analysis Total . | . . . Derelict Logs Recovered . | . . . Drone Launches . | . . . Drone Recoveries . | . . . Exploration | -11 -10 -9 ------------- Run | Yrd Mat Mat Turns Passed 2565 | 57 619 1889 Spaces Moved 1709 | 56 607 1046 Core 2 | 1 . 1 Treads 477 | . 5 472 Legs . | . . . Wheels 1230 | 55 602 573 Hover . | . . . Flight . | . . . Fastest Speed 50 | 50 80 80 Average Speed 109 | 79 80 127 Slowest Speed 500 | 80 160 500 Overloaded Moves . | . . . Propulsion Burnouts . | . . . Robots Hopped . | . . . Potential Cave-ins . | . . . Cave-ins Triggered . | . . . Exploration Rate (%) 39 | 3 58 56 Regions Visited 2 Branch Regions . Pre-discovered Areas . | . . . Known Exits Taken 1 | . 1 . Unknown Exits Taken 1 | 1 . . Scrap Searched . | . . . Spaces Dug . | . . . Terrain Destroyed 39 | . . 39 Melee . | . . . Projectile . | . . . AOE 39 | . . 39 Terrain Rammed . | . . . Walls Destroyed . | . . . Machines Disabled . | . . . Actions | -11 -10 -9 --------- Run | Yrd Mat Mat Total 2151 | 65 702 1384 Wait 189 | . 63 126 Move 1707 | 55 606 1046 Hop . | . . . Pick Up 25 | 4 4 17 Fast Attach 20 | 6 3 11 Attach 10 | . 1 9 Detach 5 | . 2 3 Swap 29 | . 5 24 Drop 20 | . 2 18 Fire 142 | . 16 126 Melee . | . . . Ram . | . . . Kick . | . . . Crush 4 | . . 4 Escape Stasis . | . . . Rewire . | . . . Trap . | . . . Miscellaneous . | . . . Route ------- -11/Scrapyard -10/Materials (discovered 3 exits: *Mat / [*Min] / [*Sub]) -9/Materials (discovered 3 exits: *Min x2 / *Sto) History --------- Turn | Location | Event 18 | -11/Scrapyard | Discovered new exit (range 15) 58 | -11/Scrapyard | Entered Materials 178 | -10/Materials | Discovered new exit (range 5) 274 | -10/Materials | Discovered new exit (range 9) 306 | -10/Materials | Build established: Mutant 472 | -10/Materials | Discovered new exit (range 14) 487 | -10/Materials | Identified exit to Materials 677 | -10/Materials | Entered another Materials area 677 | -9/Materials | Evolved 2 slots: Propulsion x1, Utility x1 678 | -9/Materials | Discovered new exit (range 9) 894 | -9/Materials | Lost 4 parts (1p3w) 1094 | -9/Materials | Core integrity fell below 50% 1390 | -9/Materials | Discovered new exit (range 16) 1412 | -9/Materials | Identified exit to Mines 1619 | -9/Materials | Discovered exit to Mines (range 12) 1838 | -9/Materials | Repaired Power Shielding 1867 | -9/Materials | Identified exit to Storage 2083 | -9/Materials | Repaired Grenade Launcher 2116 | -9/Materials | Core integrity fell below 20% 2566 | -9/Materials | Destroyed by Y-45 Defender with Beam Rifle Last Messages --------------- 02267_ Acquired 3 matter. 02326_ L-31 Rogue knocked back. 02332_ G-34 Mercenary destroyed. 02335_ L-31 Rogue knocked back. 02347_ L-31 Rogue destroyed. 02351_ Acquired 2 matter. 02353_ Acquired 27 matter. 02356_ Acquired 2 matter. 02427_ Crushed O-16 Technician. 02427_ O-16 Technician destroyed. 02441_ W-16 Scout sends out distress signal. 02452_ K-01 Serf collects debris. 02464_ Slammed into K-01 Serf. 02474_ Slammed into W-16 Scout. 02545_ C-30 ARC bursts open, deploying its payload. 02545_ G-47 Trooper unfolds itself. 02545_ G-34 Mercenary unfolds itself. 02555_ U-05 Engineer suffers critical hit (Burn). Map ----- +----------------------------------------------------+ | ?????????????????????? #??????? #??????? | | ??????????????????????# #??????? #??????? | | ??????????????????????# ##+#??? #??????? | | ??????????????????????# ???? """ """ #??????? | | ??????????????????????# ????# """ """ #??????? | | ??????????????????????# ????# """ """ #??????? | | ??????????????????????# ?????# #??????? | | ??????????????????????# #?????# #??????? | | ??????????????????????# ###############/#??????? | | ??????????????????????# # #???# #??????? | | ??????????????????????# # #???# #??????# | | ????????##+############ # #???# #??????# | | ????????# # #???# #??????# | | ???????+ " + #???# #??????# | | ????????# "%" # """ """ #???# #??????# | | ????????????###+#######ggY# """ """ #???# #??????# | | ??????????????????????# # """ """ #???# ######## | | ??????????????????????# #########/#???# / | | ??????????????????????# #???????# #???# ######## | | ??????????????????????# #???????# #???# #??????# | | ??????????????????????# #???????# #???# #??????# | | ??????????????????????# #???????# #???# #??????? | | ??????????????????????# #???????# #???# #??????? | | ??????????????????????# #???????# #???# #??????? | | ??????????????????????# #???????# #???# #??????? | | ??????????????????????# @#?####### ##### #### """ | | ??????????????????????# + """ | | ??????????????????????# ########+#### | | ??????????????????????# ??????# #???? | | ??????????????????????#########+#?????# #???? | | ??????????????????????????????????????# """ #???? | | ??????????????????????????????????????# """ #???? | | ??????????????????????????????????????# """ #???? | | ??????????????????????????????????????# #???? | | ??????????????????????????????????????########???? | | ?????????????????????????????????????????????????? | | ?????????????????????????????????????????????????? | | ?????????????????????????????????????????????????? | | ?????????????????????????????????????????????????? | | ?????????????????????????????????????????????????? | | ?????????????????????????????????????????????????? | | | | | | | | | | | | | | | | | | | +----------------------------------------------------+ Best States ------------- Heat Dissipation 28 Energy Generation 10 Energy Capacity 250 Matter Stores 300 Matter Capacity 300 Sight Range 16 Terrain Scan Density 10 Power Shielding 33 Evasion (%) 44 Recoil Reduction 3 Item Schematics ----------------- None Robot Schematics ------------------ None Fabricated ------------ Nothing Repaired ---------- Power Shielding | 30% | -9/Materials Grenade Launcher | 23% | -9/Materials Studied --------- None Alien Tech Used ----------------- None Achievements -------------- None Challenges ------------ None Game ------ Seed LayeredAlloyDrivehammer Manual? 0 Play Time 01:10:22 Cumulative 133.7 hours Start 2026.03.16 @ 22:48:28 End 2026.03.25 @ 12:25:18 Sessions 9 Manual Loads 0 Difficulty Rogue Special Mode None Game No. 135 Rogue 135 Adventurer 0 Explorer 0 Win Type - Total 0 Types 0/0/0/0/0/0/0/0/0/0 Lore% 15 Gallery% 25 Achievement% 16 Wizard Run 0 Options --------- Layout 2 ASCII 0 Keyboard 0 Movement Numpad Keybinds 0 Fullscreen 1 Font 24/Smallcaps Map View 50x44 Zoom Use 0% Tactical HUD 1 Map Filters NONE Filters NONE Steam 1 RUN: ac418910-a152-4f00-82fc-bd3460166e76